fUSD/lending_fUSD_20251220
["ID","MTS","AMOUNT","RATE_DAILY","PERIOD"]
[399237290,1766196644147,-250.0,0.00014556,2]
[399237291,1766196644156,-500.0,0.00014556,2]
[399237292,1766196644166,-220.0,0.00014556,2]
[399237293,1766196644176,-250.0,0.00014556,2]
[399237294,1766196644186,-500.0,0.00014556,2]
[399237295,1766196644196,-220.0,0.00014556,2]
[399237296,1766196644206,-250.0,0.00014556,2]
[399237297,1766196644216,-500.0,0.00014556,2]
[399237298,1766196644226,-500.0,0.00014556,2]
[399237299,1766196644236,-252.4499311,0.00014556,2]
[399237300,1766196644245,-1037.0,0.00014556,2]
[399237301,1766196644256,-250.0,0.00014556,2]
[399237302,1766196644268,-574.12855637,0.00014556,2]
[399237303,1766196644279,-500.0,0.00014556,2]
[399237304,1766196644290,-500.0,0.00014556,2]
[399237305,1766196644302,-250.0,0.00014556,2]
[399237306,1766196644312,-500.0,0.00014556,2]
[399237307,1766196644322,-500.0,0.00014556,2]
[399237308,1766196644343,-250.0,0.00014556,2]
[399237309,1766196644353,-500.0,0.00014556,2]
[399237310,1766196644363,-500.0,0.00014556,2]
[399237311,1766196644373,-250.0,0.00014556,2]
[399237312,1766196644384,-500.0,0.00014556,2]
[399237313,1766196644394,-500.0,0.00014556,2]
[399237314,1766196644404,-250.0,0.00014556,2]
[399237315,1766196644414,-500.0,0.00014556,2]
[399237316,1766196644424,-578.20924308,0.00014556,2]
[399237317,1766196644434,-250.0,0.00014556,2]
[399237318,1766196644445,-250.0,0.00014556,2]
[399237319,1766196644457,-500.0,0.00014556,2]
[399237320,1766196644469,-500.0,0.00014556,2]
[399237321,1766196644481,-1199.0,0.00014556,2]
[399237322,1766196644491,-250.0,0.00014556,2]
[399237323,1766196644501,-500.0,0.00014556,2]
[399237324,1766196644513,-173.95994129,0.00014556,2]
[399237325,1766196644523,-500.0,0.00014556,2]
[399237326,1766196644535,-500.0,0.00014556,2]
[399237327,1766196644545,-620.0,0.00014556,2]
[399237328,1766196644555,-500.0,0.00014556,2]
[399237329,1766196644565,-151.0,0.00014556,2]
[399237330,1766196644575,-500.0,0.00014556,2]
[399237331,1766196644585,-200.0,0.00014556,2]
[399237332,1766196644594,-207.4,0.00014556,2]
[399237333,1766196644604,-833.23475386,0.00014556,2]
[399237334,1766196644614,-215.0738,0.00014556,2]
[399237335,1766196644623,-223.0315306,0.00014556,2]
[399237336,1766196644633,-231.28369723,0.00014556,2]
[399237337,1766196644644,-239.84119403,0.00014556,2]
[399237338,1766196644653,-395.65042272,0.00014556,2]
[399237339,1766196644663,-153.78508436,0.00014556,2]
[399237340,1766196644673,-500.0,0.00014556,2]
[399237341,1766196644682,-500.0,0.00014556,2]
[399237342,1766196644693,-500.0,0.00014556,2]
[399237343,1766196644705,-500.0,0.00014556,2]
[399237344,1766196644715,-500.0,0.00014556,2]
[399237345,1766196644727,-500.0,0.00014556,2]
[399237346,1766196644738,-500.0,0.00014556,2]
[399237347,1766196644749,-500.0,0.00014556,2]
[399237348,1766196644759,-500.0,0.00014556,2]
[399237349,1766196644770,-500.0,0.00014556,2]
[399237350,1766196644780,-500.0,0.00014556,2]
[399237351,1766196644790,-587.0,0.00014558,2]
[399237352,1766196644801,-587.0,0.00014558,2]
[399237353,1766196644812,-500.0,0.00014558,2]
[399237354,1766196644823,-200.0,0.00014558,2]
[399237355,1766196644833,-200.0,0.00014558,2]
[399237356,1766196644843,-1000.0,0.00014601,2]
[399237357,1766196644853,-1000.0,0.00014601,2]
[399237358,1766196644863,-794.454,0.00014601,2]
[399237359,1766196644873,-1457.22248038,0.00014611,2]
[399237360,1766196644883,-1162.0,0.00014619,2]
[399237361,1766196644894,-724.0,0.00014643,2]
[399237362,1766196644903,-470.0,0.00014657,2]
[399237363,1766196644913,-604.0,0.00014657,2]
[399237364,1766196644924,-497.0,0.00014657,2]
[399237365,1766196644934,-395.20598099,0.00014657,2]
[399237366,1766196644944,-351.31035432,0.00014657,2]
[399237367,1766196644954,-1157.0,0.00014657,2]
[399237368,1766196644965,-554.0,0.00014657,2]
[399237369,1766196644975,-500.0,0.00014658,2]
[399237370,1766196644986,-500.0,0.00014666,2]
[399237371,1766196644998,-12861.40719154,0.00014698,2]
[399237372,1766196645009,-724.0,0.0001478,2]
[399237373,1766196645019,-470.0,0.00014794,2]
[399237374,1766196645030,-604.0,0.00014794,2]
[399237375,1766196645040,-497.0,0.00014794,2]
[399237376,1766196645050,-1157.0,0.00014794,2]
[399237377,1766196645061,-554.0,0.00014794,2]
[399237378,1766196645071,-1614.17,0.00014794,2]
[399237379,1766196645081,-500.0,0.00014795,2]
[399237380,1766196645092,-500.0,0.00014803,2]
[399237381,1766196645102,-1500.0,0.00014868,2]
[399237382,1766196645113,-1001.91769362,0.00014868,2]
[399237383,1766196645123,-1500.0,0.00014868,2]
[399237384,1766196645138,-1501.18432329,0.00014868,2]
[399237385,1766196645149,-1500.0,0.00014868,2]
[399237386,1766196645159,-1500.0,0.00014868,2]
[399237387,1766196645172,-1211.67995912,0.00014868,2]
[399237388,1766196645182,-502.20443143,0.00014868,2]
[399237389,1766196645192,-1501.51415398,0.00014868,2]
[399237390,1766196645202,-1502.00400434,0.00014868,2]
[399237391,1766196645213,-1503.97714891,0.00014868,2]
[399237392,1766196645223,-1500.0,0.00014868,2]
[399237393,1766196645233,-1500.0,0.00014868,2]
[399237394,1766196645244,-724.0,0.00014917,2]
[399237395,1766196645255,-318.11736539,0.00014919,2]
[399237396,1766196645267,-470.0,0.00014931,2]
[399237397,1766196645278,-604.0,0.00014931,2]
[399237398,1766196645289,-497.0,0.00014931,2]
[399237399,1766196645300,-1157.0,0.00014931,2]
[399237400,1766196645311,-554.0,0.00014931,2]
[399237401,1766196645322,-153.83,0.00014931,2]
[399237402,1766196645335,-500.0,0.00014932,2]
[399237403,1766196645346,-500.0,0.0001494,2]
[399237404,1766196645357,-500.0,0.00014951,2]
[399237405,1766196645369,-500.0,0.00014951,2]
[399237406,1766196645381,-200.0,0.00015026,2]
[399237407,1766196645394,-724.0,0.00015054,2]
[399237408,1766196645405,-470.0,0.00015068,2]
[399237409,1766196645416,-604.0,0.00015068,2]
[399237410,1766196645426,-497.0,0.00015068,2]
[399237411,1766196645437,-1157.0,0.00015068,2]
[399237412,1766196645449,-554.0,0.00015068,2]
[399237413,1766196645462,-151.90726099,0.00015068,2]
[399237414,1766196645472,-1614.17,0.00015068,2]
[399237415,1766196645483,-500.0,0.00015069,2]
[399237416,1766196645494,-500.0,0.00015077,2]
[399237417,1766196645505,-1075.369,0.00015104,2]
[399237418,1766196645518,-595.37131296,0.00015104,2]
[399237419,1766196645529,-151.0,0.00015104,2]
[399237420,1766196645542,-500.0,0.00015106,2]
[399237421,1766196645552,-200.0,0.00015106,2]
[399237422,1766196645562,-200.0,0.00015106,2]
[399237423,1766196645572,-12861.40719154,0.00015139,2]
[399237424,1766196645583,-724.0,0.00015191,2]
[399237425,1766196645593,-470.0,0.00015205,2]
[399237426,1766196645603,-604.0,0.00015205,2]
[399237427,1766196645613,-497.0,0.00015205,2]
[399237428,1766196645624,-1157.0,0.00015205,2]
[399237429,1766196645635,-554.0,0.00015205,2]
[399237430,1766196645646,-500.0,0.00015206,2]
[399237431,1766196645656,-500.0,0.00015206,2]
[399237432,1766196645667,-500.0,0.00015206,2]
[399237433,1766196645677,-500.0,0.00015206,2]
[399237434,1766196645687,-500.0,0.00015206,2]
[399237435,1766196645696,-500.0,0.00015206,2]
[399237436,1766196645707,-500.0,0.00015206,2]
[399237437,1766196645717,-500.0,0.00015206,2]
[399237438,1766196645727,-500.0,0.00015206,2]
[399237439,1766196645737,-500.0,0.00015206,2]
[399237440,1766196645747,-500.0,0.00015206,2]
[399237441,1766196645757,-466.65080545,0.00015214,2]
[399237442,1766196645767,-10258.0,0.00015219,2]
[399237443,1766196645777,-155.64705311,0.00015288,2]
[399237444,1766196645869,-160.33063992,0.00015288,2]
[399237445,1766196645879,-158.48329942,0.00015288,2]
[399237446,1766196645889,-151.72084113,0.00015288,2]
[399237447,1766196645899,-150.0,0.00015288,2]
[399237448,1766196645909,-156.76422926,0.00015288,2]
[399237449,1766196645918,-157.75435091,0.00015288,2]
[399237450,1766196645928,-152.11986511,0.00015288,2]
[399237451,1766196645941,-150.82546103,0.00015288,2]
[399237452,1766196645951,-151.68546767,0.00015288,2]
[399237453,1766196645960,-152.94375339,0.00015288,2]
[399237454,1766196645971,-152.70737667,0.00015288,2]
[399237455,1766196645980,-155.96693599,0.00015288,2]
[399237456,1766196645990,-151.0,0.00015325,2]
[399237457,1766196646000,-724.0,0.00015328,2]
[399237458,1766196646010,-500.0,0.00015333,2]
[399237459,1766196646020,-500.0,0.00015333,2]
[399237460,1766196646029,-505.03580841,0.00015333,2]
[399237461,1766196646039,-500.0,0.00015333,2]
[399237462,1766196646048,-260.33789622,0.00015333,2]
[399237463,1766196646058,-500.0,0.00015333,2]
[399237464,1766196646069,-500.0,0.00015333,2]
[399237465,1766196646079,-151.0,0.00015336,2]
[399237466,1766196646090,-470.0,0.00015342,2]
[399237467,1766196646099,-604.0,0.00015342,2]
[399237468,1766196646110,-497.0,0.00015342,2]
[399237470,1766196646120,-1157.0,0.00015342,2]
[399237471,1766196646130,-554.0,0.00015342,2]
[399237472,1766196646139,-1614.17,0.00015342,2]
[399237473,1766196646150,-164.00458563,0.00015343,2]
[399237474,1766196646159,-151.0,0.00015344,2]
[399237475,1766196646168,-2000.0,0.00015416,2]
[399237476,1766196646179,-2002.17420355,0.00015416,2]
[399237477,1766196646188,-1503.12423045,0.00015416,2]
[399237478,1766196646198,-1188.04388907,0.00015416,2]
[399237479,1766196646207,-1501.47727649,0.00015416,2]
[399237480,1766196646217,-2000.0,0.00015416,2]
[399237481,1766196646227,-724.0,0.00015465,2]
[399237482,1766196646236,-470.0,0.00015479,2]
[399237483,1766196646246,-604.0,0.00015479,2]
[399237484,1766196646255,-497.0,0.00015479,2]
[399237485,1766196646267,-1157.0,0.00015479,2]
[399237486,1766196646277,-554.0,0.00015479,2]
[399237487,1766196646287,-153.81,0.00015557,2]
[399237488,1766196646296,-318.11736539,0.00015579,2]
[399237489,1766196646307,-12861.40719154,0.00015579,2]
[399237490,1766196646316,-724.0,0.00015602,2]
[399237491,1766196646327,-470.0,0.00015616,2]
[399237492,1766196646339,-604.0,0.00015616,2]
[399237493,1766196646349,-497.0,0.00015616,2]
[399237494,1766196646358,-1157.0,0.00015616,2]
[399237495,1766196646368,-554.0,0.00015616,2]
[399237496,1766196646378,-1614.17,0.00015616,2]
[399237497,1766196646388,-150.0,0.00015627,2]
[399237498,1766196646398,-495.0,0.00015648,2]
[399237499,1766196646408,-301.37247362,0.00015652,2]
[399237500,1766196646419,-617.40005154,0.00015652,2]
[399237501,1766196646429,-152.47844731,0.00015652,2]
[399237502,1766196646439,-216.87698702,0.00015653,2]
[399237503,1766196646450,-500.0,0.00015654,2]
[399237504,1766196646460,-200.0,0.00015654,2]
[399237505,1766196646470,-200.0,0.00015654,2]
[399237506,1766196646479,-172.24,0.00015693,2]
[399237507,1766196646489,-150.0,0.00015738,2]
[399237508,1766196646499,-724.0,0.00015739,2]
[399237509,1766196646509,-500.0,0.00015744,2]
[399237510,1766196646521,-500.0,0.00015744,2]
[399237511,1766196646532,-500.0,0.00015744,2]
[399237512,1766196646542,-470.0,0.00015753,2]
[399237513,1766196646551,-604.0,0.00015753,2]
[399237514,1766196646562,-497.0,0.00015753,2]
[399237515,1766196646574,-1157.0,0.00015753,2]
[399237516,1766196646584,-554.0,0.00015753,2]
[399237517,1766196646595,-724.0,0.00015876,2]
[399237518,1766196646605,-153.83,0.00015889,2]
[399237519,1766196646615,-470.0,0.0001589,2]
[399237520,1766196646626,-604.0,0.0001589,2]
[399237521,1766196646637,-497.0,0.0001589,2]
[399237522,1766196646646,-1157.0,0.0001589,2]
[399237523,1766196646655,-554.0,0.0001589,2]
[399237524,1766196646664,-1614.17,0.0001589,2]
[399237525,1766196646674,-500.0,0.0001589,2]
[399237526,1766196646685,-311.1,0.00015925,2]
[399237527,1766196646697,-151.0,0.00015925,2]
[399237528,1766196646707,-217.55,0.00015931,2]
[399237529,1766196646722,-250.0,0.00015963,2]
[399237530,1766196646731,-2500.0,0.00015964,2]
[399237531,1766196646740,-2500.0,0.00015964,2]
[399237532,1766196646750,-150.0,0.00015967,2]
[399237533,1766196646760,-823.0,0.0001598,2]
[399237534,1766196646770,-5000.0,0.00016,2]
[399237535,1766196646780,-5000.0,0.00016,2]
[399237536,1766196646792,-202723.523132,0.00016,2]
[399237537,1766196646802,-724.0,0.00016013,2]
[399237538,1766196646812,-12861.40719154,0.00016019,2]
[399237539,1766196646823,-500.0,0.00016026,2]
[399237540,1766196646834,-150.0,0.00016026,2]
[399237541,1766196646844,-150.97899754,0.00016026,2]
[399237542,1766196646855,-500.0,0.00016026,2]
[399237543,1766196646864,-500.0,0.00016026,2]
[399237544,1766196646875,-150.0,0.00016026,2]
[399237545,1766196646885,-150.0,0.00016026,2]
[399237546,1766196646895,-500.0,0.00016026,2]
[399237547,1766196646904,-150.0,0.00016026,2]
[399237548,1766196646915,-500.0,0.00016026,2]
[399237549,1766196646924,-150.0,0.00016026,2]
[399237550,1766196646933,-150.0,0.00016026,2]
[399237551,1766196646944,-150.0,0.00016026,2]
[399237552,1766196646953,-150.0,0.00016026,2]
[399237553,1766196646962,-150.0,0.00016026,2]
[399237554,1766196646971,-500.0,0.00016026,2]
[399237555,1766196646981,-500.0,0.00016026,2]
[399237556,1766196646990,-150.0,0.00016026,2]
[399237557,1766196646999,-470.0,0.00016027,2]
[399237558,1766196647010,-604.0,0.00016027,2]
[399237559,1766196647019,-497.0,0.00016027,2]
[399237560,1766196647029,-1157.0,0.00016027,2]
[399237561,1766196647038,-554.0,0.00016027,2]
[399237562,1766196647048,-724.0,0.0001615,2]
[399237563,1766196647058,-1002.15082385,0.00016151,2]
[399237564,1766196647068,-500.0,0.00016163,2]
[399237565,1766196647077,-150.29349305,0.00016163,2]
[399237566,1766196647087,-500.0,0.00016163,2]
[399237567,1766196647097,-500.0,0.00016163,2]
[399237568,1766196647106,-150.0,0.00016163,2]
[399237569,1766196647115,-150.0,0.00016163,2]
[399237571,1766196647125,-500.0,0.00016163,2]
[399237573,1766196647134,-150.0,0.00016163,2]
[399237575,1766196647145,-500.0,0.00016163,2]
[399237577,1766196647154,-150.0,0.00016163,2]
[399237579,1766196647163,-150.0,0.00016163,2]
[399237581,1766196647172,-162.71079327,0.00016163,2]
[399237583,1766196647181,-150.0,0.00016163,2]
[399237585,1766196647191,-150.0,0.00016163,2]
[399237587,1766196647199,-500.0,0.00016163,2]
[399237589,1766196647209,-500.0,0.00016163,2]
[399237591,1766196647217,-201.2765323,0.00016163,2]
[399237593,1766196647226,-470.0,0.00016164,2]
[399237595,1766196647236,-604.0,0.00016164,2]
[399237597,1766196647245,-497.0,0.00016164,2]
[399237599,1766196647254,-554.0,0.00016164,2]
[399237601,1766196647268,-1157.0,0.00016164,2]
[399237603,1766196647278,-1614.17,0.00016164,2]
[399237605,1766196647288,-640.24385345,0.000162,2]
[399237607,1766196647297,-268.48828966,0.000162,2]
[399237609,1766196647307,-500.0,0.00016202,2]
[399237611,1766196647317,-202.43639099,0.00016202,2]
[399237613,1766196647326,-200.0,0.00016202,2]
[399237615,1766196647336,-318.11736539,0.0001624,2]
[399237617,1766196647345,-724.0,0.00016287,2]
[399237618,1766196647354,-500.0,0.000163,2]
[399237619,1766196647363,-501.70181775,0.000163,2]
[399237620,1766196647371,-500.0,0.000163,2]
[399237621,1766196647380,-150.0,0.000163,2]
[399237622,1766196647389,-231.95831861,0.000163,2]
[399237623,1766196647398,-500.0,0.000163,2]
[399237624,1766196647408,-150.0,0.000163,2]
[399237625,1766196647419,-500.0,0.000163,2]
[399237626,1766196647427,-214.56501288,0.000163,2]
[399237627,1766196647436,-150.0,0.000163,2]
[399237628,1766196647446,-150.0,0.000163,2]
[399237629,1766196647455,-256.61900573,0.000163,2]
[399237630,1766196647463,-356.44146346,0.000163,2]
[399237631,1766196647473,-467.42824898,0.000163,2]
[399237632,1766196647482,-500.29716194,0.000163,2]
[399237633,1766196647492,-500.0,0.000163,2]
[399237634,1766196647501,-500.0,0.000163,2]
[399237635,1766196647510,-500.33069287,0.000163,2]
[399237636,1766196647519,-500.0,0.000163,2]
[399237637,1766196647528,-500.0,0.000163,2]
[399237638,1766196647537,-500.0,0.000163,2]
[399237639,1766196647546,-162.03877535,0.000163,2]
[399237640,1766196647555,-162.35722153,0.000163,2]
[399237641,1766196647564,-500.0,0.000163,2]
[399237642,1766196647573,-570.20028222,0.000163,2]
[399237643,1766196647582,-500.0,0.000163,2]
[399237644,1766196647591,-590.13268338,0.000163,2]
[399237645,1766196647600,-500.0,0.000163,2]
[399237646,1766196647609,-452.09330567,0.000163,2]
[399237647,1766196647618,-500.0,0.000163,2]
[399237648,1766196647627,-500.0,0.000163,2]
[399237649,1766196647636,-500.0,0.000163,2]
[399237650,1766196647645,-500.0,0.000163,2]
[399237651,1766196647655,-334.5464899,0.000163,2]
[399237652,1766196647664,-500.0,0.000163,2]
[399237653,1766196647673,-330.6916765,0.000163,2]
[399237654,1766196647682,-500.48687625,0.000163,2]
[399237655,1766196647691,-500.37407939,0.000163,2]
[399237656,1766196647700,-500.0,0.000163,2]
[399237657,1766196647710,-500.0,0.000163,2]
[399237658,1766196647719,-426.51211002,0.000163,2]
[399237659,1766196647727,-500.0,0.000163,2]
[399237660,1766196647737,-500.0,0.000163,2]
[399237661,1766196647746,-177.2862913,0.000163,2]
[399237662,1766196647755,-500.0,0.000163,2]
[399237663,1766196647764,-500.19600128,0.000163,2]
[399237664,1766196647773,-500.0,0.000163,2]
[399237665,1766196647783,-162.24077786,0.000163,2]
[399237666,1766196647792,-500.0,0.000163,2]
[399237667,1766196647801,-500.59670517,0.000163,2]
[399237668,1766196647810,-500.44010865,0.000163,2]
[399237669,1766196647820,-500.0,0.000163,2]
[399237670,1766196647829,-500.21661931,0.000163,2]
[399237671,1766196647839,-518.77690272,0.000163,2]
[399237672,1766196647848,-333.44713486,0.000163,2]
[399237673,1766196647857,-500.0,0.000163,2]
[399237674,1766196647866,-500.0,0.000163,2]
[399237675,1766196647876,-500.5161197,0.000163,2]
[399237676,1766196647886,-500.4308882,0.000163,2]
[399237677,1766196647896,-500.34670783,0.000163,2]
[399237678,1766196647905,-500.30081252,0.000163,2]
[399237679,1766196647914,-500.0,0.000163,2]
[399237680,1766196647923,-500.16141079,0.000163,2]
[399237681,1766196647933,-516.37835686,0.000163,2]
[399237682,1766196647942,-500.0,0.000163,2]
[399237683,1766196647952,-500.0,0.000163,2]
[399237684,1766196647961,-161.07996631,0.000163,2]
[399237685,1766196647970,-166.91561833,0.000163,2]
[399237686,1766196647979,-500.45922425,0.000163,2]
[399237687,1766196647988,-500.0,0.000163,2]
[399237688,1766196647998,-500.30832876,0.000163,2]
[399237689,1766196648008,-500.0,0.000163,2]
[399237690,1766196648018,-500.0,0.000163,2]
[399237691,1766196648027,-500.0,0.000163,2]
[399237692,1766196648036,-220.27121476,0.000163,2]
[399237693,1766196648046,-543.08632529,0.000163,2]
[399237694,1766196648055,-500.5692733,0.000163,2]
[399237695,1766196648064,-168.09419939,0.000163,2]
[399237696,1766196648073,-555.87900727,0.000163,2]
[399237697,1766196648082,-500.0,0.000163,2]
[399237698,1766196648091,-468.55909228,0.000163,2]
[399237699,1766196648100,-500.0,0.000163,2]
[399237700,1766196648109,-500.0,0.000163,2]
[399237701,1766196648118,-523.00588269,0.000163,2]
[399237702,1766196648126,-500.0,0.000163,2]
[399237703,1766196648135,-500.34860131,0.000163,2]
[399237704,1766196648144,-500.0,0.000163,2]
[399237705,1766196648153,-500.0,0.000163,2]
[399237706,1766196648162,-577.20648211,0.000163,2]
[399237707,1766196648171,-500.0,0.000163,2]
[399237708,1766196648180,-500.0,0.000163,2]
[399237709,1766196648189,-168.56959317,0.000163,2]
[399237710,1766196648198,-344.64845159,0.000163,2]
[399237711,1766196648207,-529.96646376,0.000163,2]
[399237712,1766196648215,-500.0,0.000163,2]
[399237713,1766196648224,-473.34451461,0.00016301,2]
[399237714,1766196648233,-615.45523889,0.00016301,2]
[399237715,1766196648242,-519.02968013,0.00016301,2]
[399237716,1766196648253,-557.69482467,0.00016301,2]
[399237717,1766196648266,-1158.42070959,0.00016301,2]
[399237718,1766196648275,-150.0,0.00016307,2]
[399237719,1766196648283,-179.547,0.00016348,2]
[399237720,1766196648292,-2972.365,0.00016348,2]
[399237721,1766196648302,-228.0,0.000164,2]
[399237722,1766196648311,-319.0,0.000164,2]
[399237723,1766196648320,-182.0,0.000164,2]
[399237724,1766196648330,-183.63284637,0.000164,2]
[399237725,1766196648339,-1009.0,0.000164,2]
[399237726,1766196648348,-740.43315878,0.00016424,2]
[399237727,1766196648358,-154.90930279,0.00016435,2]
[399237728,1766196648367,-500.0,0.00016437,2]
[399237729,1766196648377,-500.0,0.00016437,2]
[399237730,1766196648386,-154.04785046,0.00016437,2]
[399237731,1766196648395,-150.0,0.00016437,2]
[399237732,1766196648404,-150.0,0.00016437,2]
[399237733,1766196648414,-602.86533629,0.00016437,2]
[399237734,1766196648423,-150.0,0.00016437,2]
[399237735,1766196648431,-151.82870014,0.00016437,2]
[399237736,1766196648441,-500.0,0.00016437,2]
[399237737,1766196648450,-500.0,0.00016437,2]
[399237738,1766196648459,-500.0,0.00016437,2]
[399237739,1766196648468,-500.0,0.00016437,2]
[399237740,1766196648478,-500.0,0.00016437,2]
[399237741,1766196648487,-467.18251007,0.00016437,2]
[399237742,1766196648496,-505.83670147,0.00016437,2]
[399237743,1766196648505,-543.43338651,0.00016437,2]
[399237744,1766196648514,-156.42387419,0.00016437,2]
[399237745,1766196648523,-500.0,0.00016437,2]
[399237746,1766196648532,-1614.17,0.00016438,2]
[399237747,1766196648541,-500.0,0.00016438,2]
[399237748,1766196648550,-500.0,0.00016438,2]
[399237749,1766196648559,-500.0,0.00016438,2]
[399237750,1766196648568,-500.0,0.00016438,2]
[399237751,1766196648577,-500.0,0.00016438,2]
[399237752,1766196648586,-500.0,0.00016438,2]
[399237753,1766196648597,-500.0,0.00016438,2]
[399237754,1766196648606,-500.0,0.00016438,2]
[399237755,1766196648614,-500.0,0.00016438,2]
[399237756,1766196648623,-500.0,0.00016438,2]
[399237757,1766196648633,-500.0,0.00016438,2]
[399237758,1766196648642,-500.0,0.00016438,2]
[399237759,1766196648651,-500.0,0.00016438,2]
[399237760,1766196648660,-500.0,0.00016438,2]
[399237761,1766196648669,-500.0,0.00016438,2]
[399237762,1766196648678,-500.0,0.00016438,2]
[399237763,1766196648687,-500.0,0.00016438,2]
[399237764,1766196648696,-500.0,0.00016438,2]
[399237765,1766196648704,-500.0,0.00016438,2]
[399237766,1766196648713,-500.0,0.00016438,2]
[399237767,1766196648722,-500.0,0.00016438,2]
[399237768,1766196648731,-500.0,0.00016438,2]
[399237769,1766196648740,-500.0,0.00016438,2]
[399237770,1766196648749,-500.0,0.00016438,2]
[399237771,1766196648758,-500.0,0.00016438,2]
[399237772,1766196648768,-500.0,0.00016438,2]
[399237773,1766196648777,-500.0,0.00016438,2]
[399237774,1766196648786,-500.0,0.00016438,2]
[399237775,1766196648795,-500.0,0.00016438,2]
[399237776,1766196648805,-500.0,0.00016438,2]
[399237777,1766196648814,-500.0,0.00016438,2]
[399237778,1766196648823,-360.06130462,0.00016438,2]
[399237779,1766196648832,-500.0,0.00016438,2]
[399237780,1766196648841,-500.0,0.00016438,2]
[399237781,1766196648852,-500.0,0.00016438,2]
[399237782,1766196648861,-500.0,0.00016438,2]
[399237783,1766196648871,-500.0,0.00016438,2]
[399237784,1766196648881,-500.0,0.00016438,2]
[399237785,1766196648890,-500.0,0.00016438,2]
[399237786,1766196648900,-500.0,0.00016438,2]
[399237787,1766196648909,-500.0,0.00016438,2]
[399237788,1766196648919,-500.0,0.00016438,2]
[399237789,1766196648928,-500.0,0.00016438,2]
[399237790,1766196648938,-500.0,0.00016438,2]
[399237791,1766196648947,-500.0,0.00016438,2]
[399237792,1766196648956,-500.0,0.00016438,2]
[399237793,1766196648966,-500.0,0.00016438,2]
[399237794,1766196648976,-500.0,0.00016438,2]
[399237795,1766196648985,-500.0,0.00016438,2]
[399237796,1766196648995,-500.0,0.00016438,2]
[399237797,1766196649004,-500.0,0.00016438,2]
[399237798,1766196649013,-500.0,0.00016438,2]
[399237799,1766196649023,-500.0,0.00016438,2]
[399237800,1766196649032,-500.0,0.00016438,2]
[399237801,1766196649041,-500.0,0.00016438,2]
[399237802,1766196649050,-500.0,0.00016438,2]
[399237803,1766196649059,-500.0,0.00016438,2]
[399237804,1766196649071,-500.0,0.00016438,2]
[399237805,1766196649080,-500.0,0.00016438,2]
[399237806,1766196649092,-500.0,0.00016438,2]
[399237807,1766196649103,-500.0,0.00016438,2]
[399237808,1766196649114,-500.0,0.00016438,2]
[399237809,1766196649124,-500.0,0.00016438,2]
[399237810,1766196649133,-500.0,0.00016438,2]
[399237811,1766196649142,-500.0,0.00016438,2]
[399237812,1766196649151,-500.0,0.00016438,2]
[399237813,1766196649161,-500.0,0.00016438,2]
[399237814,1766196649171,-500.0,0.00016438,2]